[Event "FRA-ch Youth U16 2018"]
[Site "Agen"]
[Date "2018.04.16"]
[Round "3"]
[White "Degraeve, Remy"]
[Black "Lepoittevin, Thomas"]
[Result "1/2-1/2"]
[ECO "B23"]
[WhiteElo "2294"]
[BlackElo "1789"]
[Annotator "NA RC"]
[PlyCount "78"]
[EventDate "2018.??.??"]
[EventType "swiss"]
[EventCountry "FRA"]
[SourceTitle "playchess.com"]
[Source "ChessBase"]
[SourceQuality "1"]
[TimeControl "5400+30"]

1. e4 {[%emt 0:00:00]} c5 {[%emt 0:00:27]} 2. Nc3 {[%emt 0:00:00]} a6 {[%emt 0:00:10]} 3. g3 {[%emt 0:00:01]} b5 {[%emt 0:00:08]} 4. a4 {[%emt 0:00:18] B23: Closed Sicilian: Lines without g3} (4. Bg2 Bb7 5. d3 e6 6. f4 Nf6 7. Nf3 d6 8. O-O Be7 9. a4 b4 10. Ne2 c4 11. b3 cxd3 12. cxd3 O-O 13. h3 Nc6 14. g4 Nd7 15. g5 {1-0 (51) Duda,J (2717)-Fedorchuk,S (2648) Katowice 2017}) 4... b4 {[%emt 0:00:49]} 5. Nd5 {[%emt 0:00:03]} e6 {[%emt 0:00:44]} 6. Ne3 {[%emt 0:00:04]} Bb7 {[%emt 0:01:37]} 7. Bg2 {[%emt 0:01:32]} Nf6 {[%emt 0:01:11]} 8. d3 {[%emt 0:00:22]} d5 {[%emt 0:01:32] LiveBook: 5 Games} 9. exd5 {[%emt 0:02:41]} Nxd5 {[%emt 0:02:26]} 10. Nc4 {[%emt 0:00:06]} Nd7 $146 {[%emt 0:04:37]} ({Reject Predecessor:} 10... Nc3 $6 11. Bxb7 Nxd1 12. Bxa8 $16 Nxf2 13. Kxf2 {1-0 (55) Longa Yauca,J (2290)-Bartolome Martin,A (1842) Madrid 2016}) 11. Nf3 {[%emt 0:00:23]} a5 {[%emt 0:01:31]} 12. O-O {[%emt 0:00:19]} N5b6 {[%emt 0:01:50]} 13. Nfd2 {[%emt 0:03:01]} Bxg2 {[%emt 0:00:59]} 14. Kxg2 {[%emt 0:00:02]} Be7 {[%emt 0:01:29]} 15. Qf3 {[%emt 0:02:07]} O-O {[%emt 0:03:41]} 16. Re1 {[%emt 0:01:51]} Bg5 {[%emt 0:01:11]} 17. h4 {[%emt 0:01:04]} Nxc4 {[%emt 0:01:24]} (17... Be7 $11) 18. hxg5 {[%emt 0:00:17]} Nd6 {[%emt 0:02:21]} 19. Qh5 {[%emt 0:06:14]} Re8 {[%emt 0:00:32]} 20. Rh1 {[%emt 0:02:01]} Nf8 {[%emt 0:00:17]} 21. Nf3 {[%emt 0:01:16]} e5 {[%emt 0:04:51]} 22. b3 {[%emt 0:07:19]} e4 {[%emt 0:02:40]} 23. dxe4 {[%emt 0:00:13]} Nxe4 {[%emt 0:03:23]} 24. Bb2 {[%emt 0:00:24]} Ra7 {[%emt 0:02:41]} 25. Rad1 {[%emt 0:01:45]} Qb6 {[%emt 0:00:28]} 26. Ne5 {[%emt 0:03:46]} Rae7 {[%emt 0:05:00]} 27. Nc4 {[%emt 0:04:19]} Qb7 {[%emt 0:09:22]} 28. f3 {[%emt 0:24:01]} Nc3 {[%emt 0:00:31]} 29. Bxc3 {[%emt 0:01:37]} Re2+ $17 {[%emt 0:01:16]} 30. Kf1 {[%emt 0:02:02]} bxc3 {[%emt 0:00:16]} 31. Nd6 {[%emt 0:05:48]} Rd2 {[%emt 0:00:40]} 32. Rxd2 {[%emt 0:10:02]} cxd2 {[%emt 0:00:17]} 33. Kf2 {[%emt 0:00:12]} Qd5 {[%emt 0:01:42]} 34. Nxe8 {[%emt 0:02:03]} d1=Q {[%emt 0:00:12]} 35. Rxd1 {[%emt 0:00:25]} Qxd1 {[%emt 0:00:08]} 36. Nc7 {[%emt 0:07:43]} Qxc2+ {[%emt 0:00:34]} 37. Kg1 {[%emt 0:00:58]} Qd1+ {[%emt 0:00:20]} 38. Kg2 {[%emt 0:00:32]} Qd2+ {[%emt 0:00:06]} 39. Kg1 {[%emt 0:00:46]} Qd1+ {[%emt 0:00:07]} 1/2-1/2

[Event "FRA-ch Youth U16 2018"]
[Site "Agen"]
[Date "2018.04.16"]
[Round "3"]
[White "Aubert, Estee"]
[Black "David, Irene"]
[Result "1/2-1/2"]
[ECO "A04"]
[WhiteElo "1892"]
[BlackElo "1668"]
[Annotator "NA RC"]
[PlyCount "62"]
[EventDate "2018.??.??"]
[EventType "swiss"]
[EventCountry "FRA"]
[SourceTitle "playchess.com"]
[Source "ChessBase"]
[SourceQuality "1"]
[TimeControl "5400+30"]

1. Nf3 {[%emt 0:00:00]} Nc6 {[%emt 0:00:44]} 2. d4 {[%emt 0:00:00]} d5 {[%emt 0:00:18]} 3. g3 {[%emt 0:00:00]} g6 {[%emt 0:06:34]} 4. Bg2 {[%emt 0:00:19]} Bg7 {[%emt 0:00:14]} 5. O-O {[%emt 0:02:04]} Nf6 {[%emt 0:03:25]} 6. c4 $14 {[%emt 0:02:36] LiveBook: 9 Games} O-O {[%emt 0:08:13]} 7. cxd5 {[%emt 0:01:00]} Nxd5 {[%emt 0:03:20]} 8. e4 {[%emt 0:01:49]} Nb6 {[%emt 0:01:24]} 9. d5 {[%emt 0:01:16]} Ne5 {[%emt 0:05:55]} 10. Nc3 {[%emt 0:00:40]} e6 {[%emt 0:02:45]} 11. Bg5 {[%emt 0:02:41]} Nxf3+ {[%emt 0:00:36]} 12. Bxf3 {[%emt 0:01:24]} Qxg5 {[%emt 0:00:14]} 13. Qb3 {[%emt 0:01:11]} exd5 {[%emt 0:03:13]} 14. exd5 {[%emt 0:00:25]} Bg4 {[%emt 0:02:43]} 15. Bg2 {[%emt 0:01:18]} Rfe8 {[%emt 0:06:06]} 16. Rfe1 {[%emt 0:04:02]} Qd2 {[%emt 0:04:44]} 17. Ne4 {[%emt 0:11:21]} Qxb2 {[%emt 0:02:04]} 18. Qd3 {[%emt 0:00:48]} Qd4 {[%emt 0:07:30]} 19. Qb5 {[%emt 0:02:16]} Bd7 {[%emt 0:01:18]} 20. Qb3 {[%emt 0:00:39]} Qc4 {[%emt 0:00:35]} 21. Qxc4 {[%emt 0:00:40]} Nxc4 {[%emt 0:00:01]} 22. Rac1 {[%emt 0:00:07]} Nd6 {[%emt 0:10:16]} 23. Rxc7 {[%emt 0:01:33]} Bf5 {[%emt 0:03:41]} 24. f3 {[%emt 0:00:28]} Rac8 {[%emt 0:02:49]} 25. Rxc8 {[%emt 0:00:07]} Nxc8 {[%emt 0:00:02]} 26. Nf6+ {[%emt 0:01:20]} Bxf6 {[%emt 0:00:25]} 27. Rxe8+ {[%emt 0:00:05]} Kg7 {[%emt 0:02:13]} 28. Re1 {[%emt 0:02:57]} Nd6 {[%emt 0:00:34]} 29. Rc1 {[%emt 0:02:14]} Bd4+ {[%emt 0:01:44]} 30. Kh1 {[%emt 0:00:20]} Bb6 {[%emt 0:01:03]} 31. Bf1 {[%emt 0:01:09]} Kf6 {[%emt 0:01:21]} 1/2-1/2

[Event "FRA-ch Youth U16 2018"]
[Site "Agen"]
[Date "2018.04.16"]
[Round "3"]
[White "Bellahcene, Meriem"]
[Black "Rubsamen, Anais"]
[Result "1-0"]
[ECO "B06"]
[WhiteElo "1862"]
[BlackElo "1658"]
[Annotator "NA RC"]
[PlyCount "71"]
[EventDate "2018.??.??"]
[EventType "swiss"]
[EventCountry "FRA"]
[SourceTitle "playchess.com"]
[Source "ChessBase"]
[SourceQuality "1"]
[TimeControl "5400+30"]

1. e4 {[%emt 0:00:00]} g6 {[%emt 0:00:06]} 2. d4 {[%emt 0:00:00]} c6 {[%emt 0:00:26]} 3. Nc3 {[%emt 0:00:00]} d5 {[%emt 0:00:42]} 4. e5 {[%emt 0:00:11]} Bg7 {[%emt 0:00:07]} 5. f4 {[%emt 0:00:05]} Nh6 {[%emt 0:00:20]} 6. Nf3 {[%emt 0:00:25]} Bg4 {[%emt 0:00:21]} 7. h3 {[%emt 0:00:25]} Bxf3 {[%emt 0:00:06]} 8. Qxf3 {[%emt 0:00:05]} Nf5 {[%emt 0:01:42] [#]} 9. Be3 {[%emt 0:01:07]} (9. Ne2 $1 $16) 9... Qb6 {[%emt 0:01:41]} 10. O-O-O $14 {[%emt 0:09:37]} Na6 {[%emt 0:05:53]} 11. g4 {[%emt 0:03:17]} Nh6 {[%emt 0:04:28]} 12. f5 {[%emt 0:08:54]} O-O-O {[%emt 0:02:15]} 13. h4 {[%emt 0:08:24]} Kb8 {[%emt 0:05:53]} 14. h5 {[%emt 0:05:41]} gxf5 {[%emt 0:01:44]} 15. gxf5 {[%emt 0:00:25]} e6 {[%emt 0:00:50]} 16. Bh3 {[%emt 0:04:11]} Nxf5 {[%emt 0:09:22]} 17. Bxf5 {[%emt 0:00:13]} exf5 {[%emt 0:00:03]} 18. h6 {[%emt 0:01:48]} Bxe5 {[%emt 0:03:44]} 19. dxe5 {[%emt 0:01:04]} d4 {[%emt 0:00:07]} 20. Bf2 {[%emt 0:00:50]} c5 {[%emt 0:02:55]} 21. Ne2 {[%emt 0:02:55]} Qe6 {[%emt 0:01:47]} 22. Qb3 {[%emt 0:09:45]} c4 {[%emt 0:05:54]} 23. Qa3 {[%emt 0:01:08]} d3 {[%emt 0:01:15]} 24. cxd3 {[%emt 0:08:56]} cxd3 {[%emt 0:00:07]} 25. Nc3 {[%emt 0:00:24]} Qxe5 {[%emt 0:01:13]} 26. Qa4 {[%emt 0:11:10]} Nc5 {[%emt 0:11:26]} 27. Bxc5 {[%emt 0:02:06]} Qxc5 {[%emt 0:00:07]} 28. Qf4+ {[%emt 0:00:22]} Ka8 {[%emt 0:00:34]} 29. Rh3 {[%emt 0:02:28]} d2+ {[%emt 0:04:37]} 30. Rxd2 {[%emt 0:02:00]} Qg1+ {[%emt 0:04:50]} 31. Kc2 {[%emt 0:00:28]} Qg4 {[%emt 0:02:19]} 32. Rf3 {[%emt 0:03:04]} Rxd2+ {[%emt 0:00:51]} 33. Kxd2 {[%emt 0:00:04]} Rd8+ {[%emt 0:00:51]} 34. Kc2 {[%emt 0:00:20]} Qg6 {[%emt 0:03:50]} 35. Rf2 {[%emt 0:02:11]} a6 {[%emt 0:01:59]} 36. Kb1 {[%emt 0:04:02]} 1-0

[Event "FRA-ch Youth U16 2018"]
[Site "Agen"]
[Date "2018.04.16"]
[Round "3"]
[White "Diez, Ambre"]
[Black "Djidjeli, Sarah"]
[Result "1/2-1/2"]
[ECO "B24"]
[WhiteElo "1701"]
[BlackElo "1903"]
[Annotator "NA RC"]
[PlyCount "98"]
[EventDate "2018.??.??"]
[EventType "swiss"]
[EventCountry "FRA"]
[SourceTitle "playchess.com"]
[Source "ChessBase"]
[SourceQuality "1"]
[TimeControl "5400+30"]

1. e4 {[%emt 0:00:00]} c5 {[%emt 0:00:02]} 2. Nc3 {[%emt 0:00:00]} Nc6 {[%emt 0:00:07]} 3. g3 {[%emt 0:00:00]} g6 {[%emt 0:00:24]} 4. Bg2 {[%emt 0:00:02]} Bg7 {[%emt 0:00:03]} 5. Nge2 {[%emt 0:00:21]} e6 {[%emt 0:02:37]} 6. d3 {[%emt 0:00:23]} Nge7 {[%emt 0:00:19]} 7. Be3 {[%emt 0:01:52]} Nd4 {[%emt 0:00:36]} 8. O-O {[%emt 0:02:24]} O-O {[%emt 0:00:39]} 9. Rb1 {[%emt 0:01:54]} d6 {[%emt 0:03:29]} 10. f4 {[%emt 0:07:31]} Rb8 $11 {[%emt 0:01:41] LiveBook: 4 Games} 11. g4 {[%emt 0:06:54]} f5 {[%emt 0:04:30]} 12. h3 {[%emt 0:02:42]} b5 {[%emt 0:05:04]} 13. Ng3 {[%emt 0:01:38]} e5 {[%emt 0:19:47]} 14. gxf5 {[%emt 0:08:31]} gxf5 {[%emt 0:01:15]} 15. Nce2 {[%emt 0:00:15]} Nxe2+ {[%emt 0:02:00]} 16. Nxe2 {[%emt 0:00:44]} Ng6 {[%emt 0:01:37]} 17. Qe1 {[%emt 0:01:30]} Nh4 {[%emt 0:02:58]} 18. Qg3 {[%emt 0:06:09]} Nxg2 {[%emt 0:02:47]} 19. Qxg2 {[%emt 0:02:12]} Kh8 {[%emt 0:04:56]} 20. Kh2 {[%emt 0:08:32]} Qe7 {[%emt 0:08:13]} 21. Nc3 {[%emt 0:20:41]} Be6 {[%emt 0:05:42]} 22. fxe5 {[%emt 0:07:26]} Bxe5+ {[%emt 0:09:00]} 23. Bf4 {[%emt 0:00:42]} Rg8 {[%emt 0:03:19]} 24. Qd2 {[%emt 0:03:00]} Rbf8 {[%emt 0:06:35]} 25. Bxe5+ {[%emt 0:00:41]} dxe5 {[%emt 0:00:07]} 26. exf5 {[%emt 0:00:28]} Bxf5 {[%emt 0:00:56]} 27. Qe3 {[%emt 0:01:05]} Qe6 {[%emt 0:08:03]} 28. Rbe1 {[%emt 0:02:47]} Re8 {[%emt 0:01:22]} 29. Nxb5 {[%emt 0:07:11]} Qc6 {[%emt 0:01:58]} 30. Rf2 {[%emt 0:01:17]} Bc8 {[%emt 0:00:01]} 31. Nc3 {[%emt 0:00:52]} Rg6 {[%emt 0:00:25]} 32. Qe4 {[%emt 0:01:29]} Qd7 {[%emt 0:00:53]} 33. Qe3 {[%emt 0:01:03]} Qc6 {[%emt 0:03:14]} 34. Qe4 {[%emt 0:00:10]} Qe6 {[%emt 0:00:33]} 35. Re3 {[%emt 0:02:26]} Qe7 {[%emt 0:00:49]} 36. Rg2 {[%emt 0:01:24]} Rxg2+ {[%emt 0:01:33]} 37. Qxg2 {[%emt 0:00:07]} Bb7 {[%emt 0:00:04]} 38. Ne4 {[%emt 0:00:33]} Rg8 {[%emt 0:00:24]} 39. Rg3 {[%emt 0:00:07]} Rf8 {[%emt 0:00:44]} 40. Rf3 {[%emt 0:00:28]} Rd8 {[%emt 0:00:28]} 41. Qf2 {[%emt 0:00:23]} Bd5 {[%emt 0:00:26]} 42. c4 Bxe4 {[%emt 0:00:58]} 43. dxe4 {[%emt 0:00:27]} Rg8 {[%emt 0:00:40]} 44. Rf7 {[%emt 0:00:19]} Qg5 {[%emt 0:00:25]} 45. Qf6+ {[%emt 0:00:10]} Qxf6 {[%emt 0:00:08]} 46. Rxf6 Rd8 47. Rc6 Rd4 48. Rxc5 Rxe4 49. Rc7 a6 1/2-1/2

[Event "FRA-ch Youth U16 2018"]
[Site "Agen"]
[Date "2018.04.16"]
[Round "3"]
[White "Rozec, Mialy"]
[Black "Conti, Anne-Marie"]
[Result "0-1"]
[ECO "A61"]
[WhiteElo "1668"]
[BlackElo "1865"]
[Annotator "NA RC"]
[PlyCount "94"]
[EventDate "2018.??.??"]
[EventType "swiss"]
[EventCountry "FRA"]
[SourceTitle "playchess.com"]
[Source "ChessBase"]
[SourceQuality "1"]
[TimeControl "5400+30"]

1. d4 {[%emt 0:00:00]} Nf6 {[%emt 0:00:27]} 2. Nf3 {[%emt 0:00:00]} e6 {[%emt 0:00:12]} 3. c4 {[%emt 0:00:00]} c5 {[%emt 0:00:17]} 4. d5 {[%emt 0:00:31]} exd5 {[%emt 0:00:07]} 5. cxd5 {[%emt 0:00:10]} d6 {[%emt 0:00:04]} 6. Nc3 {[%emt 0:00:24]} g6 {[%emt 0:00:13]} 7. Nd2 {[%emt 0:00:28]} Nbd7 {[%emt 0:00:22]} 8. Nc4 {[%emt 0:03:23]} Nb6 {[%emt 0:00:16]} 9. e4 {[%emt 0:02:04]} Nxc4 {[%emt 0:04:20]} 10. Bxc4 {[%emt 0:00:43]} Bg7 $11 {[%emt 0:01:08] LiveBook: 3 Games} 11. O-O {[%emt 0:01:42]} O-O {[%emt 0:02:04]} 12. Bf4 {[%emt 0:08:58]} Nh5 {[%emt 0:00:50]} 13. Be3 {[%emt 0:02:54]} a6 {[%emt 0:02:23]} 14. a4 {[%emt 0:00:17]} Re8 {[%emt 0:01:32]} 15. Bd3 {[%emt 0:07:53]} Qh4 {[%emt 0:01:55]} 16. Qd2 {[%emt 0:04:49]} Be5 {[%emt 0:28:18]} 17. f4 {[%emt 0:18:54]} Bg7 {[%emt 0:00:53]} 18. f5 {[%emt 0:01:57]} Be5 {[%emt 0:05:14]} 19. h3 {[%emt 0:16:32]} Qg3 {[%emt 0:01:39]} 20. Ne2 {[%emt 0:10:04]} Qh2+ {[%emt 0:01:10]} 21. Kf2 {[%emt 0:00:08]} Bg3+ {[%emt 0:02:48]} 22. Kf3 {[%emt 0:04:56]} Bh4 {[%emt 0:04:25]} 23. Bf4 {[%emt 0:06:54]} Nxf4 {[%emt 0:00:19]} 24. Qxf4 {[%emt 0:00:08]} Qxf4+ {[%emt 0:00:32]} 25. Nxf4 {[%emt 0:01:15]} Bf6 {[%emt 0:00:36]} 26. Ra2 {[%emt 0:00:54]} gxf5 {[%emt 0:02:11]} 27. exf5 {[%emt 0:00:21]} Bd4 {[%emt 0:00:41]} 28. Kg3 {[%emt 0:02:40]} Bd7 {[%emt 0:02:01]} 29. b3 {[%emt 0:00:29]} Re5 {[%emt 0:02:16]} 30. Re2 {[%emt 0:02:42]} Rae8 {[%emt 0:02:26]} 31. Rfe1 {[%emt 0:00:15]} Bc3 {[%emt 0:02:50]} 32. Rxe5 {[%emt 0:00:09]} dxe5 {[%emt 0:02:57]} 33. Rf1 {[%emt 0:03:01]} exf4+ {[%emt 0:00:11]} 34. Kxf4 {[%emt 0:00:08]} Bd2+ {[%emt 0:00:13]} 35. Kg4 {[%emt 0:00:59]} Re3 {[%emt 0:00:50]} 36. Rf3 {[%emt 0:00:27]} Re5 {[%emt 0:00:11]} 37. Bc4 {[%emt 0:00:45]} b5 {[%emt 0:00:57]} 38. axb5 {[%emt 0:00:21]} axb5 {[%emt 0:00:04]} 39. Bf1 {[%emt 0:00:35]} Rxd5 {[%emt 0:00:47]} 40. Bd3 {[%emt 0:00:38]} Rd4+ {[%emt 0:00:49]} 41. Kg3 {[%emt 0:00:25]} Bc6 {[%emt 0:00:09]} 42. Be2 {[%emt 0:00:36]} Bxf3 {[%emt 0:00:24]} 43. Kxf3 {[%emt 0:00:25]} Rf4+ {[%emt 0:00:38]} 44. Kg3 {[%emt 0:00:11]} c4 {[%emt 0:00:12]} 45. bxc4 {[%emt 0:00:45]} bxc4 {[%emt 0:00:06]} 46. Kh2 {[%emt 0:00:27]} c3 {[%emt 0:00:28]} 47. Bd3 {[%emt 0:00:42]} Rb4 {[%emt 0:00:54]} 0-1